[Event "Deloitte NK 2021 Vrouwen"]
[Site "Hoogeveen, Netherlands"]
[Date "2021.10.19"]
[Round "3.1"]
[White "Ratsma, Rosa"]
[Black "Van Foreest, Machteld"]
[Result "1/2-1/2"]
[TimeControl "90min/40moves + 30min + 30sec/move"]
[WhiteElo "2306"]
[BlackElo "2132"]

1. e4 {[%clk 01:30:57]} {[%emt 00:00:02]} e6 {[%clk 01:30:55]} {[%emt
00:00:05]} 2. d4 {[%clk 01:31:11]} {[%emt 00:00:16]} d5 {[%clk 01:31:24]}
{[%emt 00:00:02]} 3. Nc3 {[%clk 01:31:18]} {[%emt 00:00:23]} Nf6 {[%clk
01:31:51]} {[%emt 00:00:03]} 4. Bg5 {[%clk 01:31:30]} {[%emt 00:00:18]} h6
{[%clk 01:32:18]} {[%emt 00:00:03]} 5. Bxf6 {[%clk 01:31:25]} {[%emt 00:00:35]}
Qxf6 {[%clk 01:32:45]} {[%emt 00:00:03]} 6. exd5 {[%clk 01:31:30]} {[%emt
00:00:24]} Bb4 {[%clk 01:33:12]} {[%emt 00:00:04]} 7. Bc4 {[%clk 01:31:21]}
{[%emt 00:00:38]} Bxc3+ {[%clk 01:16:06]} {[%emt 00:17:36]} 8. bxc3 {[%clk
01:31:42]} {[%emt 00:00:09]} O-O {[%clk 01:16:17]} {[%emt 00:00:20]} 9. Ne2
{[%clk 01:24:57]} {[%emt 00:07:14]} exd5 {[%clk 01:10:34]} {[%emt 00:06:13]} 10.
Bxd5 {[%clk 01:24:52]} {[%emt 00:00:35]} Rd8 {[%clk 01:09:42]} {[%emt
00:01:22]} 11. Bf3 {[%clk 01:22:56]} {[%emt 00:02:26]} Nd7 {[%clk 00:59:40]}
{[%emt 00:10:32]} 12. O-O {[%clk 01:19:04]} {[%emt 00:04:22]} c6 {[%clk
00:56:33]} {[%emt 00:03:38]} 13. Ng3 {[%clk 01:12:13]} {[%emt 00:07:20]} Nc5
{[%clk 00:49:10]} {[%emt 00:07:53]} 14. Re1 {[%clk 01:07:30]} {[%emt 00:05:12]}
Na4 {[%clk 00:46:16]} {[%emt 00:03:26]} 15. Ne4 {[%clk 01:00:45]} {[%emt
00:07:14]} Qg6 {[%clk 00:44:34]} {[%emt 00:02:12]} 16. Qd2 {[%clk 00:46:51]}
{[%emt 00:14:24]} Be6 {[%clk 00:42:06]} {[%emt 00:02:58]} 17. Ng3 {[%clk
00:40:23]} {[%emt 00:06:57]} Rd7 {[%clk 00:31:56]} {[%emt 00:10:41]} 18. Re4
{[%clk 00:33:17]} {[%emt 00:07:36]} Rad8 {[%clk 00:26:28]} {[%emt 00:05:58]} 19.
Rae1 {[%clk 00:30:25]} {[%emt 00:03:22]} Nb6 {[%clk 00:22:03]} {[%emt
00:04:55]} 20. h4 {[%clk 00:23:48]} {[%emt 00:07:06]} Nd5 {[%clk 00:18:50]}
{[%emt 00:03:43]} 21. h5 {[%clk 00:17:28]} {[%emt 00:06:50]} Qg5 {[%clk
00:18:08]} {[%emt 00:01:12]} 22. Qd3 {[%clk 00:14:37]} {[%emt 00:03:21]} Nf4
{[%clk 00:17:00]} {[%emt 00:01:39]} 23. Qe3 {[%clk 00:14:06]} {[%emt 00:01:00]}
Nd5 {[%clk 00:17:13]} {[%emt 00:00:17]} 24. Qd3 {[%clk 00:11:20]} {[%emt
00:03:16]} Nf4 {[%clk 00:16:43]} {[%emt 00:01:00]} 25. Qe3 {[%clk 00:09:02]}
{[%emt 00:02:48]} Nd5 {[%clk 00:17:07]} {[%emt 00:00:06]} 26. Qd3 {[%clk
00:09:09]} {[%emt 00:00:23]} Nf4 {[%clk 00:12:18]} {[%emt 00:05:20]} 27. Qe3
{[%clk 00:09:16]} {[%emt 00:00:22]} Nd5 {[%clk 00:12:36]} {[%emt 00:00:12]} 28.
Qd3 {[%clk 00:09:19]} {[%emt 00:00:27]} 1/2-1/2

[Event "Deloitte NK 2021 Vrouwen"]
[Site "Hoogeveen, Netherlands"]
[Date "2021.10.19"]
[Round "3.2"]
[White "Kazarian, Anna-Maja"]
[Black "Roebers, Eline"]
[Result "0-1"]
[TimeControl "90min/40moves + 30min + 30sec/move"]
[WhiteElo "2125"]
[BlackElo "2297"]

1. e4 {[%clk 01:30:57]} {[%emt 00:00:02]} c5 {[%clk 01:30:56]} {[%emt
00:00:04]} 2. Nc3 {[%clk 01:31:21]} {[%emt 00:00:07]} Nc6 {[%clk 01:31:21]}
{[%emt 00:00:05]} 3. Bb5 {[%clk 01:31:36]} {[%emt 00:00:14]} Nd4 {[%clk
01:31:45]} {[%emt 00:00:06]} 4. Bc4 {[%clk 01:32:02]} {[%emt 00:00:04]} g6
{[%clk 01:27:30]} {[%emt 00:04:46]} 5. Nf3 {[%clk 01:32:00]} {[%emt 00:00:31]}
Bg7 {[%clk 01:27:03]} {[%emt 00:00:57]} 6. Nxd4 {[%clk 01:31:50]} {[%emt
00:00:40]} cxd4 {[%clk 01:24:33]} {[%emt 00:03:01]} 7. Qf3 {[%clk 01:32:01]}
{[%emt 00:00:19]} e6 {[%clk 01:21:35]} {[%emt 00:03:28]} 8. Nb5 {[%clk
01:31:13]} {[%emt 00:01:18]} Qb6 {[%clk 01:11:55]} {[%emt 00:10:09]} 9. Qf4
{[%clk 01:31:22]} {[%emt 00:00:21]} Nf6 {[%clk 00:57:37]} {[%emt 00:14:49]} 10.
Nc7+ {[%clk 01:28:51]} {[%emt 00:03:01]} Kd8 {[%clk 00:56:41]} {[%emt
00:01:26]} 11. Nxa8 {[%clk 01:29:10]} {[%emt 00:00:11]} Qc6 {[%clk 00:57:08]}
{[%emt 00:00:02]} 12. d3 {[%clk 01:22:39]} {[%emt 00:07:01]} b5 {[%clk
00:55:07]} {[%emt 00:02:31]} 13. e5 {[%clk 01:07:46]} {[%emt 00:15:24]} Nh5
{[%clk 00:45:04]} {[%emt 00:10:32]} 14. Qxf7 {[%clk 01:03:23]} {[%emt
00:04:54]} Qxg2 {[%clk 00:42:35]} {[%emt 00:02:59]} 15. Bd2 {[%clk 01:00:09]}
{[%emt 00:03:43]} Bb7 {[%clk 00:40:56]} {[%emt 00:02:09]} 16. O-O-O {[%clk
00:51:29]} {[%emt 00:09:10]} bxc4 {[%clk 00:37:58]} {[%emt 00:03:27]} 17. Ba5+
{[%clk 00:42:19]} {[%emt 00:09:41]} Kc8 {[%clk 00:38:15]} {[%emt 00:00:12]} 18.
Nc7 {[%clk 00:41:59]} {[%emt 00:00:52]} Bxe5 {[%clk 00:32:24]} {[%emt
00:06:19]} 19. Nxe6 {[%clk 00:29:02]} {[%emt 00:13:28]} Qd5 {[%clk 00:29:46]}
{[%emt 00:03:08]} 20. Rhe1 {[%clk 00:13:37]} {[%emt 00:15:55]} c3 {[%clk
00:21:59]} {[%emt 00:08:17]} 21. Nd8 {[%clk 00:10:57]} {[%emt 00:03:10]} Qxa5
{[%clk 00:20:59]} {[%emt 00:01:30]} 22. Nxb7 {[%clk 00:10:41]} {[%emt
00:00:47]} Qb6 {[%clk 00:19:44]} {[%emt 00:01:45]} 23. b3 {[%clk 00:04:33]}
{[%emt 00:06:37]} Bf4+ {[%clk 00:18:14]} {[%emt 00:02:00]} 24. Kb1 {[%clk
00:05:00]} {[%emt 00:00:04]} Qxb7 {[%clk 00:17:14]} {[%emt 00:01:29]} 25. Qc4+
{[%clk 00:04:33]} {[%emt 00:00:57]} Kb8 {[%clk 00:16:01]} {[%emt 00:01:43]} 26.
Qxd4 {[%clk 00:04:49]} {[%emt 00:00:14]} Rc8 {[%clk 00:12:56]} {[%emt
00:03:34]} 27. Re7 {[%clk 00:04:06]} {[%emt 00:01:13]} Qa6 {[%clk 00:08:26]}
{[%emt 00:05:00]} 28. Qxd7 {[%clk 00:02:50]} {[%emt 00:01:47]} Nf6 {[%clk
00:08:08]} {[%emt 00:00:48]} 29. Qd4 {[%clk 00:02:23]} {[%emt 00:00:57]} Bd6
{[%clk 00:07:18]} {[%emt 00:01:20]} 30. Re6 {[%clk 00:01:32]} {[%emt 00:01:21]}
Rc6 {[%clk 00:05:53]} {[%emt 00:01:55]} 31. a4 {[%clk 00:01:05]} {[%emt
00:00:58]} Nd7 {[%clk 00:04:59]} {[%emt 00:01:23]} 32. Rde1 {[%clk 00:00:51]}
{[%emt 00:00:44]} Qb6 {[%clk 00:04:04]} {[%emt 00:01:25]} 33. Qd5 {[%clk
00:00:41]} {[%emt 00:00:40]} Kc7 {[%clk 00:02:43]} {[%emt 00:01:51]} 34. R1e4
{[%clk 00:00:35]} {[%emt 00:00:37]} Qc5 {[%clk 00:01:28]} {[%emt 00:01:45]} 35.
Qd4 {[%clk 00:00:44]} {[%emt 00:00:20]} Kb7 {[%clk 00:00:50]} {[%emt 00:01:08]}
36. b4 {[%clk 00:00:43]} {[%emt 00:00:31]} Qxd4 {[%clk 00:00:33]} {[%emt
00:00:48]} 37. Rxd4 {[%clk 00:01:10]} {[%emt 00:00:03]} Kc7 {[%clk 00:00:43]}
{[%emt 00:00:20]} 38. b5 {[%clk 00:01:04]} {[%emt 00:00:36]} Rb6 {[%clk
00:01:09]} {[%emt 00:00:03]} 39. Rc4+ {[%clk 00:00:44]} {[%emt 00:00:50]} Kd8
{[%clk 00:01:15]} {[%emt 00:00:23]} 40. h4 {[%clk 00:00:39]} {[%emt 00:00:36]}
Nf8 {[%clk 00:00:44]} {[%emt 00:01:00]} 41. Ree4 {[%clk 00:22:59]} {[%emt
00:08:10]} a6 {[%clk 00:29:33]} {[%emt 00:01:42]} 42. Rxc3 {[%clk 00:22:25]}
{[%emt 00:01:05]} axb5 {[%clk 00:29:52]} {[%emt 00:00:10]} 43. Rb3 {[%clk
00:13:54]} {[%emt 00:09:01]} b4 {[%clk 00:30:07]} {[%emt 00:00:15]} 44. c3
{[%clk 00:14:20]} {[%emt 00:00:04]} Ra6 {[%clk 00:30:12]} {[%emt 00:00:25]} 45.
cxb4 {[%clk 00:12:41]} {[%emt 00:02:09]} Rxa4 {[%clk 00:30:37]} {[%emt
00:00:05]} 46. Kc2 {[%clk 00:04:42]} {[%emt 00:08:30]} Nd7 {[%clk 00:29:22]}
{[%emt 00:01:44]} 47. b5 {[%clk 00:03:20]} {[%emt 00:01:53]} Ra1 {[%clk
00:20:41]} {[%emt 00:09:11]} 48. d4 {[%clk 00:03:01]} {[%emt 00:00:48]} Nb6
{[%clk 00:19:26]} {[%emt 00:01:45]} 49. Rf3 {[%clk 00:02:48]} {[%emt 00:00:43]}
Ra2+ {[%clk 00:19:15]} {[%emt 00:00:41]} 50. Kd3 {[%clk 00:01:53]} {[%emt
00:01:25]} Rb2 {[%clk 00:17:47]} {[%emt 00:01:58]} 51. Rf7 {[%clk 00:01:32]}
{[%emt 00:00:51]} Rb3+ {[%clk 00:17:33]} {[%emt 00:00:44]} 52. Ke2 {[%clk
00:01:46]} {[%emt 00:00:16]} Nd5 {[%clk 00:16:46]} {[%emt 00:01:18]} 53. Kf1
{[%clk 00:01:09]} {[%emt 00:01:06]} Rxb5 {[%clk 00:16:53]} {[%emt 00:00:23]} 54.
Rxh7 {[%clk 00:00:46]} {[%emt 00:00:53]} Nf4 {[%clk 00:16:34]} {[%emt
00:00:49]} 55. Ke1 {[%clk 00:00:36]} {[%emt 00:00:40]} Rb2 {[%clk 00:16:34]}
{[%emt 00:00:30]} 56. d5 {[%clk 00:00:32]} {[%emt 00:00:35]} Bb4+ {[%clk
00:12:49]} {[%emt 00:04:14]} 57. Rxb4 {[%clk 00:00:59]} {[%emt 00:00:04]} Rxb4
{[%clk 00:13:06]} {[%emt 00:00:13]} 58. Kd2 {[%clk 00:01:04]} {[%emt 00:00:24]}
Re4 {[%clk 00:13:33]} {[%emt 00:00:03]} 59. d6 {[%clk 00:00:41]} {[%emt
00:00:53]} Re6 {[%clk 00:13:19]} {[%emt 00:00:44]} 60. d7 {[%clk 00:00:39]}
{[%emt 00:00:33]} Nh5 {[%clk 00:12:10]} {[%emt 00:01:38]} 61. Kc3 {[%clk
00:00:33]} {[%emt 00:00:37]} Rd6 {[%clk 00:09:18]} {[%emt 00:03:21]} 62. Kc4
{[%clk 00:00:45]} {[%emt 00:00:17]} Rxd7 {[%clk 00:07:13]} {[%emt 00:02:36]} 63.
Rxd7+ {[%clk 00:00:53]} {[%emt 00:00:22]} Kxd7 {[%clk 00:07:39]} {[%emt
00:00:04]} 64. Kd5 {[%clk 00:01:17]} {[%emt 00:00:06]} Ke7 {[%clk 00:07:25]}
{[%emt 00:00:44]} 65. Ke5 {[%clk 00:01:46]} {[%emt 00:00:01]} Nf6 {[%clk
00:06:09]} {[%emt 00:01:46]} 66. Kf4 {[%clk 00:01:16]} {[%emt 00:01:00]} Kf7
{[%clk 00:05:37]} {[%emt 00:01:02]} 67. f3 {[%clk 00:01:08]} {[%emt 00:00:38]}
Kg7 {[%clk 00:05:03]} {[%emt 00:01:04]} 68. Ke5 {[%clk 00:00:42]} {[%emt
00:00:56]} Nd7+ {[%clk 00:04:33]} {[%emt 00:00:59]} 69. Kd6 {[%clk 00:00:40]}
{[%emt 00:00:33]} Nf8 {[%clk 00:04:17]} {[%emt 00:00:46]} 70. Ke7 {[%clk
00:00:36]} {[%emt 00:00:35]} Nh7 {[%clk 00:04:07]} {[%emt 00:00:39]} 71. f4
{[%clk 00:00:43]} {[%emt 00:00:23]} Nf8 {[%clk 00:04:18]} {[%emt 00:00:19]} 72.
Ke8 {[%clk 00:00:46]} {[%emt 00:00:27]} Ne6 {[%clk 00:04:43]} {[%emt 00:00:05]}
73. Ke7 {[%clk 00:00:39]} {[%emt 00:00:38]} Nxf4 {[%emt 00:00:10]} 74. Kd6
{[%clk 00:00:46]} {[%emt 00:00:17]} Kh6 {[%clk 00:05:31]} {[%emt 00:00:06]} 75.
Ke5 {[%clk 00:00:57]} {[%emt 00:00:20]} Ng2 {[%clk 00:05:56]} {[%emt 00:00:05]}
76. Ke4 {[%clk 00:00:48]} {[%emt 00:00:39]} Nxh4 {[%clk 00:06:22]} {[%emt
00:00:04]} 77. Kf4 {[%clk 00:01:06]} {[%emt 00:00:13]} g5+ {[%clk 00:06:48]}
{[%emt 00:00:03]} 78. Kg4 {[%clk 00:01:33]} {[%emt 00:00:04]} Kg6 {[%clk
00:07:14]} {[%emt 00:00:03]} 79. Kg3 {[%clk 00:01:45]} {[%emt 00:00:18]} Kh5
{[%clk 00:07:40]} {[%emt 00:00:04]} 0-1

[Event "Deloitte NK 2021 Vrouwen"]
[Site "Hoogeveen, Netherlands"]
[Date "2021.10.19"]
[Round "3.3"]
[White "Haast, Anne"]
[Black "Keetman, Maaike"]
[Result "1/2-1/2"]
[TimeControl "90min/40moves + 30min + 30sec/move"]
[WhiteElo "2318"]
[BlackElo "2136"]

1. e4 {[%clk 01:30:56]} {[%emt 00:00:03]} e6 {[%clk 01:30:55]} {[%emt
00:00:06]} 2. d4 {[%clk 01:31:04]} {[%emt 00:00:23]} d5 {[%clk 01:31:18]}
{[%emt 00:00:06]} 3. Nc3 {[%clk 01:30:51]} {[%emt 00:00:43]} Bb4 {[%clk
01:31:26]} {[%emt 00:00:22]} 4. e5 {[%clk 01:30:25]} {[%emt 00:00:56]} c5
{[%clk 01:31:39]} {[%emt 00:00:16]} 5. a3 {[%clk 01:30:02]} {[%emt 00:00:54]}
Bxc3+ {[%clk 01:32:01]} {[%emt 00:00:08]} 6. bxc3 {[%clk 01:30:30]} {[%emt
00:00:02]} Ne7 {[%clk 01:32:21]} {[%emt 00:00:09]} 7. a4 {[%clk 01:27:58]}
{[%emt 00:03:03]} Qa5 {[%clk 01:32:29]} {[%emt 00:00:21]} 8. Bd2 {[%clk
01:26:09]} {[%emt 00:02:19]} Nbc6 {[%clk 01:32:01]} {[%emt 00:00:58]} 9. Nf3
{[%clk 01:24:42]} {[%emt 00:01:58]} Bd7 {[%clk 01:31:31]} {[%emt 00:00:59]} 10.
Bd3 {[%clk 01:20:11]} {[%emt 00:05:02]} c4 {[%clk 01:29:18]} {[%emt 00:02:43]}
11. Be2 {[%clk 01:14:47]} {[%emt 00:05:54]} f6 {[%clk 01:28:09]} {[%emt
00:01:38]} 12. O-O {[%clk 01:09:02]} {[%emt 00:06:15]} O-O-O {[%clk 01:21:32]}
{[%emt 00:07:07]} 13. Bc1 {[%clk 00:54:49]} {[%emt 00:14:44]} fxe5 {[%clk
01:12:43]} {[%emt 00:09:19]} 14. dxe5 {[%clk 00:52:41]} {[%emt 00:02:37]} Ng6
{[%clk 01:07:14]} {[%emt 00:05:59]} 15. Qd2 {[%clk 00:46:07]} {[%emt 00:07:05]}
Ngxe5 {[%clk 00:36:59]} {[%emt 00:30:44]} 16. Nxe5 {[%clk 00:44:34]} {[%emt
00:02:03]} Nxe5 {[%clk 00:37:25]} {[%emt 00:00:04]} 17. Qe3 {[%clk 00:44:38]}
{[%emt 00:00:26]} Nc6 {[%clk 00:36:06]} {[%emt 00:01:50]} 18. Ba3 {[%clk
00:43:42]} {[%emt 00:01:26]} Qc7 {[%clk 00:32:34]} {[%emt 00:04:01]} 19. Bf3
{[%clk 00:31:58]} {[%emt 00:12:14]} Qe5 {[%clk 00:25:20]} {[%emt 00:07:43]} 20.
Qd2 {[%clk 00:32:06]} {[%emt 00:00:23]} g5 {[%clk 00:25:15]} {[%emt 00:00:35]}
21. Rfe1 {[%clk 00:31:53]} {[%emt 00:00:43]} Qf5 {[%clk 00:25:19]} {[%emt
00:00:26]} 22. Qe2 {[%clk 00:31:21]} {[%emt 00:01:03]} h5 {[%clk 00:20:02]}
{[%emt 00:05:47]} 23. g3 {[%clk 00:27:28]} {[%emt 00:04:22]} g4 {[%clk
00:18:59]} {[%emt 00:01:33]} 24. Bg2 {[%clk 00:24:52]} {[%emt 00:03:06]} h4
{[%clk 00:19:09]} {[%emt 00:00:20]} 25. Bd6 {[%clk 00:24:32]} {[%emt 00:00:50]}
Rh7 {[%clk 00:13:47]} {[%emt 00:05:52]} 26. Rad1 {[%clk 00:22:07]} {[%emt
00:02:55]} Rdh8 {[%clk 00:13:35]} {[%emt 00:00:42]} 27. Bf4 {[%clk 00:21:45]}
{[%emt 00:00:51]} Rh5 {[%clk 00:10:29]} {[%emt 00:03:36]} 28. h3 {[%clk
00:11:46]} {[%emt 00:10:30]} hxg3 {[%clk 00:08:15]} {[%emt 00:02:44]} 29. fxg3
{[%clk 00:11:48]} {[%emt 00:00:28]} gxh3 {[%clk 00:08:18]} {[%emt 00:00:27]} 30.
Bf3 {[%clk 00:12:08]} {[%emt 00:00:10]} h2+ {[%clk 00:06:40]} {[%emt 00:02:08]}
31. Kh1 {[%clk 00:12:34]} {[%emt 00:00:04]} R5h7 {[%clk 00:07:08]} {[%emt
00:00:02]} 32. Bg4 {[%clk 00:11:50]} {[%emt 00:01:14]} Qf6 {[%clk 00:06:39]}
{[%emt 00:00:59]} 33. Bxe6 {[%clk 00:11:22]} {[%emt 00:00:57]} Bxe6 {[%clk
00:06:24]} {[%emt 00:00:46]} 34. Qxe6+ {[%clk 00:11:51]} {[%emt 00:00:01]} Qxe6
{[%clk 00:06:53]} 35. Rxe6 {[%clk 00:12:21]} {[%emt 00:00:01]} Re7 {[%clk
00:06:13]} {[%emt 00:01:10]} 36. Rxe7 {[%clk 00:09:47]} {[%emt 00:03:03]} Nxe7
{[%clk 00:06:42]} 37. g4 {[%clk 00:09:58]} {[%emt 00:00:19]} Ng6 {[%clk
00:05:09]} {[%emt 00:02:03]} 38. Bg3 {[%clk 00:09:03]} {[%emt 00:01:25]} Rh3
{[%clk 00:01:52]} {[%emt 00:03:46]} 39. Kg2 {[%clk 00:09:24]} {[%emt 00:00:10]}
h1=Q+ {[%clk 00:02:08]} {[%emt 00:00:14]} 40. Rxh1 {[%clk 00:09:51]} {[%emt
00:00:03]} Rxh1 {[%clk 00:02:32]} {[%emt 00:00:05]} 41. Kxh1 {[%clk 00:10:21]}
Kd7 {[%clk 00:26:07]} {[%emt 00:06:57]} 42. Kg2 {[%clk 00:38:26]} {[%emt
00:02:24]} a5 {[%clk 00:21:18]} {[%emt 00:05:19]} 43. Kf2 {[%clk 00:32:11]}
{[%emt 00:06:45]} b5 {[%clk 00:19:50]} {[%emt 00:01:58]} 44. axb5 {[%clk
00:32:35]} {[%emt 00:00:06]} a4 {[%clk 00:19:55]} {[%emt 00:00:24]} 45. b6
{[%clk 00:32:53]} {[%emt 00:00:13]} Ne7 {[%clk 00:09:05]} {[%emt 00:11:20]} 46.
b7 {[%clk 00:31:44]} {[%emt 00:01:39]} Nc6 {[%clk 00:09:30]} {[%emt 00:00:05]}
47. Bf4 {[%clk 00:29:57]} {[%emt 00:02:17]} a3 {[%clk 00:09:55]} {[%emt
00:00:05]} 48. Bc1 {[%clk 00:30:22]} {[%emt 00:00:05]} a2 {[%clk 00:10:22]}
{[%emt 00:00:03]} 49. Bb2 {[%clk 00:30:50]} {[%emt 00:00:02]} Kc7 {[%clk
00:10:44]} {[%emt 00:00:09]} 50. Ke3 {[%clk 00:26:10]} {[%emt 00:05:09]} Kxb7
{[%clk 00:11:05]} {[%emt 00:00:09]} 51. Ba1 {[%clk 00:25:36]} {[%emt 00:01:04]}
Kc7 {[%clk 00:08:43]} {[%emt 00:02:52]} 52. Kd2 {[%clk 00:23:50]} {[%emt
00:02:16]} Ne5 {[%clk 00:08:36]} {[%emt 00:00:36]} 53. g5 {[%clk 00:23:21]}
{[%emt 00:01:00]} Nf3+ {[%clk 00:08:23]} {[%emt 00:00:42]} 54. Kc1 {[%clk
00:23:47]} {[%emt 00:00:05]} Nxg5 {[%clk 00:08:10]} {[%emt 00:00:43]} 55. Kb2
{[%clk 00:24:13]} {[%emt 00:00:04]} Nf3 {[%clk 00:08:09]} {[%emt 00:00:31]} 56.
Kxa2 {[%clk 00:24:29]} {[%emt 00:00:14]} Ne1 {[%clk 00:08:27]} {[%emt
00:00:11]} 57. Kb1 {[%clk 00:24:23]} {[%emt 00:00:36]} Kd6 {[%clk 00:08:40]}
{[%emt 00:00:17]} 1/2-1/2

[Event "Deloitte NK 2021 Vrouwen"]
[Site "Hoogeveen, Netherlands"]
[Date "2021.10.19"]
[Round "3.4"]
[White "Peng, Zhaoqin"]
[Black "Lanchava, Tea"]
[Result "1-0"]
[TimeControl "90min/40moves + 30min + 30sec/move"]
[WhiteElo "2359"]
[BlackElo "2214"]

1. e4 {[%clk 01:30:52]} {[%emt 00:00:07]} g6 {[%clk 01:30:40]} {[%emt
00:00:21]} 2. d4 {[%clk 01:31:06]} {[%emt 00:00:16]} Bg7 {[%clk 01:30:19]}
{[%emt 00:00:51]} 3. c4 {[%clk 01:30:44]} {[%emt 00:00:52]} d6 {[%clk
01:30:21]} {[%emt 00:00:28]} 4. Nc3 {[%clk 01:31:06]} {[%emt 00:00:09]} e5
{[%clk 01:29:43]} {[%emt 00:01:07]} 5. Nf3 {[%clk 01:30:32]} {[%emt 00:01:04]}
Nc6 {[%clk 01:28:40]} {[%emt 00:01:33]} 6. Bg5 {[%clk 01:29:14]} {[%emt
00:01:48]} f6 {[%clk 01:23:52]} {[%emt 00:05:18]} 7. Be3 {[%clk 01:29:37]}
{[%emt 00:00:06]} Nh6 {[%clk 01:15:12]} {[%emt 00:09:11]} 8. h3 {[%clk
01:26:57]} {[%emt 00:03:10]} Nf7 {[%clk 01:14:13]} {[%emt 00:01:29]} 9. c5
{[%clk 01:09:30]} {[%emt 00:17:57]} O-O {[%clk 01:02:46]} {[%emt 00:11:57]} 10.
cxd6 {[%clk 00:49:33]} {[%emt 00:20:27]} Nxd6 {[%clk 00:55:04]} {[%emt
00:08:11]} 11. Qb3+ {[%clk 00:40:56]} {[%emt 00:09:08]} Kh8 {[%clk 00:53:43]}
{[%emt 00:01:50]} 12. dxe5 {[%clk 00:41:14]} {[%emt 00:00:13]} fxe5 {[%clk
00:49:33]} {[%emt 00:04:39]} 13. Rd1 {[%clk 00:41:37]} {[%emt 00:00:08]} a6
{[%clk 00:42:25]} {[%emt 00:07:38]} 14. Be2 {[%clk 00:37:57]} {[%emt 00:04:09]}
Qe8 {[%clk 00:38:36]} {[%emt 00:04:19]} 15. O-O {[%clk 00:36:11]} {[%emt
00:02:16]} Be6 {[%clk 00:38:24]} {[%emt 00:00:44]} 16. Qc2 {[%clk 00:36:11]}
{[%emt 00:00:29]} h6 {[%clk 00:30:15]} {[%emt 00:08:39]} 17. Nd5 {[%clk
00:29:50]} {[%emt 00:06:51]} Qf7 {[%clk 00:23:19]} {[%emt 00:07:25]} 18. Bc5
{[%clk 00:28:26]} {[%emt 00:01:55]} Rfd8 {[%clk 00:23:40]} {[%emt 00:00:08]} 19.
Nc3 {[%clk 00:19:58]} {[%emt 00:08:58]} b6 {[%clk 00:21:27]} {[%emt 00:02:44]}
20. Bxd6 {[%clk 00:18:26]} {[%emt 00:02:02]} cxd6 {[%clk 00:21:39]} {[%emt
00:00:18]} 21. Nd5 {[%clk 00:17:08]} {[%emt 00:01:48]} Bxd5 {[%clk 00:19:30]}
{[%emt 00:02:38]} 22. exd5 {[%clk 00:17:33]} {[%emt 00:00:05]} Ne7 {[%clk
00:16:03]} {[%emt 00:03:58]} 23. Qc7 {[%clk 00:14:39]} {[%emt 00:03:24]} b5
{[%clk 00:15:41]} {[%emt 00:00:52]} 24. Bd3 {[%clk 00:12:53]} {[%emt 00:02:16]}
Kg8 {[%clk 00:13:53]} {[%emt 00:02:17]} 25. Be4 {[%clk 00:12:33]} {[%emt
00:00:50]} Qf6 {[%clk 00:11:01]} {[%emt 00:03:22]} 26. Rc1 {[%clk 00:11:35]}
{[%emt 00:01:29]} Rdc8 {[%clk 00:10:22]} {[%emt 00:01:09]} 27. Qd7 {[%clk
00:10:37]} {[%emt 00:01:28]} Rd8 {[%clk 00:10:22]} {[%emt 00:00:30]} 28. Qb7
{[%clk 00:09:28]} {[%emt 00:01:38]} Rdb8 {[%clk 00:10:38]} {[%emt 00:00:15]} 29.
Qc7 {[%clk 00:09:42]} {[%emt 00:00:16]} Rc8 {[%clk 00:10:54]} {[%emt 00:00:14]}
30. Qb6 {[%clk 00:09:24]} {[%emt 00:00:47]} Rcb8 {[%clk 00:10:21]} {[%emt
00:01:03]} 31. Qe3 {[%clk 00:08:28]} {[%emt 00:01:25]} Rb7 {[%clk 00:09:55]}
{[%emt 00:00:57]} 32. g3 {[%clk 00:06:57]} {[%emt 00:02:01]} b4 {[%clk
00:05:57]} {[%emt 00:04:29]} 33. Kg2 {[%clk 00:06:41]} {[%emt 00:00:45]} Rab8
{[%clk 00:05:54]} {[%emt 00:00:33]} 34. b3 {[%clk 00:06:04]} {[%emt 00:01:08]}
Rb5 {[%clk 00:04:50]} {[%emt 00:01:34]} 35. Rfd1 {[%clk 00:05:45]} {[%emt
00:00:48]} R8b7 {[%clk 00:04:17]} {[%emt 00:01:03]} 36. h4 {[%clk 00:04:52]}
{[%emt 00:01:23]} Qf7 {[%clk 00:04:00]} {[%emt 00:00:47]} 37. Qd3 {[%clk
00:04:59]} {[%emt 00:00:23]} Ra5 {[%clk 00:03:00]} {[%emt 00:01:30]} 38. Rd2
{[%clk 00:03:52]} {[%emt 00:01:36]} Qe8 {[%clk 00:01:19]} {[%emt 00:02:12]} 39.
Rc6 {[%clk 00:02:50]} {[%emt 00:01:32]} Nxc6 {[%clk 00:00:53]} {[%emt
00:00:56]} 40. dxc6 {[%clk 00:03:13]} {[%emt 00:00:07]} Re7 {[%clk 00:01:04]}
{[%emt 00:00:18]} 41. Qxd6 {[%clk 00:02:54]} {[%emt 00:00:50]} Bf8 {[%clk
00:15:41]} {[%emt 00:15:54]} 42. Qxb4 {[%clk 00:27:27]} {[%emt 00:05:56]} Rb5
{[%clk 00:15:34]} {[%emt 00:00:37]} 43. Qc4+ {[%clk 00:27:24]} {[%emt
00:00:33]} Kg7 {[%clk 00:13:41]} {[%emt 00:02:23]} 44. Rd6 {[%clk 00:26:49]}
{[%emt 00:01:05]} Qf7 {[%clk 00:08:12]} {[%emt 00:05:59]} 45. Rxg6+ {[%clk
00:25:25]} {[%emt 00:01:53]} Kh8 {[%clk 00:08:38]} {[%emt 00:00:05]} 46. Qc3
{[%clk 00:19:15]} {[%emt 00:06:41]} Bg7 {[%clk 00:07:26]} {[%emt 00:01:41]} 47.
h5 {[%clk 00:16:08]} {[%emt 00:03:37]} Rb8 {[%clk 00:02:20]} {[%emt 00:05:36]}
48. Nh4 {[%clk 00:11:34]} {[%emt 00:05:03]} Qf8 {[%clk 00:00:51]} {[%emt
00:02:00]} 49. Rxh6+ {[%clk 00:09:24]} {[%emt 00:02:39]} Bxh6 {[%clk 00:00:46]}
{[%emt 00:00:36]} 50. Ng6+ {[%clk 00:09:51]} {[%emt 00:00:03]} Kg7 {[%clk
00:00:51]} {[%emt 00:00:25]} 51. Nxf8 {[%clk 00:10:13]} {[%emt 00:00:07]} Rxf8
{[%clk 00:00:36]} {[%emt 00:00:46]} 52. c7 {[%clk 00:09:50]} {[%emt 00:00:53]}
Rc8 {[%clk 00:00:36]} {[%emt 00:00:30]} 53. Qc6 {[%clk 00:10:13]} {[%emt
00:00:07]} 1-0